Workbook

Sheet Start

Sheet Ret_income (hidden)
A1: RET INCOME ACC | B1: SUB ACC | C1: DESCRIPTION | D1: BRANCH | E1: NEXT YEAR BUDGET | F1: THIS YEAR FORECAST | G1: CURRENT YEAR ACTUAL | H1: LAST YEAR ACTUAL | I1: 2 YEARS AGO ACTUAL | J1: LOCKED STATUS | K1: COMPLETED | L1: ACCOUNT TYPE | R1: RET INCOME ACC | S1: SUB ACC | T1: DESCRIPTION | U1: BRANCH | V1: NEXT YEAR BUDGET | W1: THIS YEAR FORECAST | X1: CURRENT YEAR ACTUAL | Y1: LAST YEAR ACTUAL | Z1: 2 YEARS AGO ACTUAL | AA1: LOCKED STATUS | AB1: COMPLETED | AC1: ACCOUNT TYPE | AE1: RET INCOME ACC | AF1: SUB ACC | AG1: DESCRIPTION | AH1: BRANCH | AI1: NEXT YEAR BUDGET | AJ1: THIS YEAR FORECAST | AK1: CURRENT YEAR ACTUAL | AL1: LAST YEAR ACTUAL | AM1: 2 YEARS AGO ACTUAL | AN1: LOCKED STATUS | AO1: COMPLETED | AP1: ACCOUNT TYPE | AR1: RET INCOME ACC | AS1: SUB ACC | AT1: DESCRIPTION | AU1: BRANCH | AV1: NEXT YEAR BUDGET | AW1: THIS YEAR FORECAST | AX1: CURRENT YEAR ACTUAL | AY1: LAST YEAR ACTUAL | AZ1: 2 YEARS AGO ACTUAL | BA1: LOCKED STATUS | BB1: COMPLETED | BC1: ACCOUNT TYPE
A2: 22000000184 | B2: 22000400113 | C2: ACCOUNTING DEPT SUPP/SERV | D2: AC | E2: 0 | F2: 83113 | G2: 61252.38 | H2: 91138.87 | I2: 66713.27 | J2: Y | K2: Y | L2: =IF($B2="",0,IF(MID($B2,6,2)="88","Transfers",IF(AND(VALUE(MID($B2,6,3))>700,VALUE(MID($B2,6,3))<800),"Income","Expenses"))) -> Expenses | R2: =Report!$F$1 -> 22000000184 | AC2: Income | AE2: =Report!$F$1 -> 22000000184 | AP2: Expenses | AR2: =Report!$F$1 -> 22000000184 | BC2: Transfers
A3: 22000000184 | B3: 22000441113 | C3: ACCOUNTING DEPT ENTERTAINMENT | D3: AC | E3: 0 | F3: 6872 | G3: 7412.8 | H3: 29940.69 | I3: 10571.82 | J3: Y | K3: Y | L3: =IF($B3="",0,IF(MID($B3,6,2)="88","Transfers",IF(AND(VALUE(MID($B3,6,3))>700,VALUE(MID($B3,6,3))<800),"Income","Expenses"))) -> Expenses
A4: 22000000184 | B4: 22000485112 | C4: ACCOUNTING DEPT PRINT UNIT | D4: AC | E4: 0 | F4: 0 | G4: 0 | H4: 179 | I4: 0 | J4: Y | K4: Y | L4: Expenses | R4: RET INCOME ACC | S4: SUB ACC | T4: DESCRIPTION | U4: BRANCH | V4: NEXT YEAR BUDGET | W4: THIS YEAR FORECAST | X4: CURRENT YEAR ACTUAL | Y4: LAST YEAR ACTUAL | Z4: 2 YEARS AGO ACTUAL | AA4: LOCKED STATUS | AB4: COMPLETED | AC4: ACCOUNT TYPE | AE4: RET INCOME ACC | AF4: SUB ACC | AG4: DESCRIPTION | AH4: BRANCH | AI4: NEXT YEAR BUDGET | AJ4: THIS YEAR FORECAST | AK4: CURRENT YEAR ACTUAL | AL4: LAST YEAR ACTUAL | AM4: 2 YEARS AGO ACTUAL | AN4: LOCKED STATUS | AO4: COMPLETED | AP4: ACCOUNT TYPE | AR4: RET INCOME ACC | AS4: SUB ACC | AT4: DESCRIPTION | AU4: BRANCH | AV4: NEXT YEAR BUDGET | AW4: THIS YEAR FORECAST | AX4: CURRENT YEAR ACTUAL | AY4: LAST YEAR ACTUAL | AZ4: 2 YEARS AGO ACTUAL | BA4: LOCKED STATUS | BB4: COMPLETED | BC4: ACCOUNT TYPE
A5: 22000000184 | B5: 22000536113 | C5: ACCOUNTING DEPT SUBSCRIPTIONS | D5: AC | E5: 0 | F5: 0 | G5: 0 | H5: 0 | I5: 0 | J5: Y | K5: Y | L5: Expenses | AE5: 22000000184 | AF5: 22000400113 | AG5: ACCOUNTING DEPT SUPP/SERV | AH5: AC | AI5: 0 | AJ5: 83113 | AK5: 61252.38 | AL5: 91138.87 | AM5: 66713.27 | AN5: Y | AO5: Y | AP5: Expenses | AR5: 22000000184 | AS5: 22000880168 | AT5: ACCOUNTING DEPT GRANT | AU5: AC | AV5: 0 | AW5: -196000 | AX5: -196000 | AY5: -175000 | AZ5: -195000 | BA5: Y | BB5: Y | BC5: Transfers
A6: 22000000184 | B6: 22000547113 | C6: ACCOUNTING DEPT TELEPHONE | D6: AC | E6: 0 | F6: 3882 | G6: 5324.62 | H6: 4427.59 | I6: 4065.07 | J6: Y | K6: Y | L6: Expenses | AE6: 22000000184 | AF6: 22000441113 | AG6: ACCOUNTING DEPT ENTERTAINMENT | AH6: AC | AI6: 0 | AJ6: 6872 | AK6: 7412.8 | AL6: 29940.69 | AM6: 10571.82 | AN6: Y | AO6: Y | AP6: Expenses | AR6: 22000000184 | AS6: 22000881168 | AT6: ACCOUNTING DEPT TRANSFERS | AU6: AC | AV6: 0 | AW6: 0 | AX6: 0 | AY6: 0 | AZ6: 0 | BA6: Y | BB6: Y | BC6: Transfers
A7: 22000000184 | B7: 22000551113 | C7: ACCOUNTING DEPT TRAVEL | D7: AC | E7: 0 | F7: 48933 | G7: 41205.49 | H7: 7016.63 | I7: 52727.6 | J7: Y | K7: Y | L7: Expenses | AE7: 22000000184 | AF7: 22000485112 | AG7: ACCOUNTING DEPT PRINT UNIT | AH7: AC | AI7: 0 | AJ7: 0 | AK7: 0 | AL7: 179 | AM7: 0 | AN7: Y | AO7: Y | AP7: Expenses
A8: 22000000184 | B8: 22000611113 | C8: ACCOUNTING DEPT DATALINE RENTAL | D8: AC | E8: 0 | F8: 0 | G8: 0 | H8: 0 | I8: 0 | J8: Y | K8: Y | L8: Expenses | AE8: 22000000184 | AF8: 22000536113 | AG8: ACCOUNTING DEPT SUBSCRIPTIONS | AH8: AC | AI8: 0 | AJ8: 0 | AK8: 0 | AL8: 0 | AM8: 0 | AN8: Y | AO8: Y | AP8: Expenses
A9: 22000000184 | B9: 22000804157 | C9: ACCOUNTING DEPT CAP EQUIPMENT | D9: AC | E9: 0 | F9: 0 | G9: 0 | H9: 2655 | I9: 799 | J9: Y | K9: Y | L9: Expenses | AE9: 22000000184 | AF9: 22000547113 | AG9: ACCOUNTING DEPT TELEPHONE | AH9: AC | AI9: 0 | AJ9: 3882 | AK9: 5324.62 | AL9: 4427.59 | AM9: 4065.07 | AN9: Y | AO9: Y | AP9: Expenses
A10: 22000000184 | B10: 22000824157 | C10: ACCOUNTING DEPT BOOKS | D10: AC | E10: 0 | F10: 23004 | G10: 23003.62 | H10: 41408.43 | I10: 43024.05 | J10: Y | K10: Y | L10: Expenses | AE10: 22000000184 | AF10: 22000551113 | AG10: ACCOUNTING DEPT TRAVEL | AH10: AC | AI10: 0 | AJ10: 48933 | AK10: 41205.49 | AL10: 7016.63 | AM10: 52727.6 | AN10: Y | AO10: Y | AP10: Expenses
A11: 22000000184 | B11: 22000880168 | C11: ACCOUNTING DEPT GRANT | D11: AC | E11: 0 | F11: -196000 | G11: -196000 | H11: -175000 | I11: -195000 | J11: Y | K11: Y | L11: Transfers | AE11: 22000000184 | AF11: 22000611113 | AG11: ACCOUNTING DEPT DATALINE RENTAL | AH11: AC | AI11: 0 | AJ11: 0 | AK11: 0 | AL11: 0 | AM11: 0 | AN11: Y | AO11: Y | AP11: Expenses
A12: 22000000184 | B12: 22000881168 | C12: ACCOUNTING DEPT TRANSFERS | D12: AC | E12: 0 | F12: 0 | G12: 0 | H12: 0 | I12: 0 | J12: Y | K12: Y | L12: Transfers | AE12: 22000000184 | AF12: 22000804157 | AG12: ACCOUNTING DEPT CAP EQUIPMENT | AH12: AC | AI12: 0 | AJ12: 0 | AK12: 0 | AL12: 2655 | AM12: 799 | AN12: Y | AO12: Y | AP12: Expenses
A13: 22001000384 | B13: 22001031302 | C13: ACC RESALE TEXTBOOKS TEMP SALS | D13: AC | E13: 0 | F13: 0 | G13: 0 | H13: 585 | I13: 0 | J13: N | K13: N | L13: Expenses | AE13: 22000000184 | AF13: 22000824157 | AG13: ACCOUNTING DEPT BOOKS | AH13: AC | AI13: 0 | AJ13: 23004 | AK13: 23003.62 | AL13: 41408.43 | AM13: 43024.05 | AN13: Y | AO13: Y | AP13: Expenses
A14: 22001000384 | B14: 22001551302 | C14: ACC RESALE TESTBOOK TRAVEL EXPENSES | D14: AC | E14: 0 | F14: 0 | G14: 0 | H14: 3319.68 | I14: 0 | J14: N | K14: N | L14: Expenses
A15: 22001000384 | B15: 22001631302 | C15: ACC RESALE TEXTBOOK NONVAT PURCHASE | D15: AC | E15: 0 | F15: 54859.99 | G15: 56718.99 | H15: 61999.8 | I15: 11319.48 | J15: N | K15: N | L15: Expenses
A16: 22001000384 | B16: 22001632302 | C16: ACC RESALE TEXTBOOK HON LIBRARY | D16: AC | E16: 0 | F16: 0 | G16: 0 | H16: 0 | I16: 0 | J16: N | K16: N | L16: Expenses
A17: 22001000384 | B17: 22001640302 | C17: ACC RESALE TEXTBOOK VAT PURCHASES | D17: AC | E17: 0 | F17: 337181.09 | G17: 344591.29 | H17: 50782.44 | I17: 0 | J17: N | K17: N | L17: Expenses
A18: 22001000384 | B18: 22001752369 | C18: ACC RESALE TEXTBOOK NON TAX INCOME | D18: AC | E18: 0 | F18: 0 | G18: 0 | H18: 0 | I18: 0 | J18: N | K18: N | L18: Income
A19: 22001000384 | B19: 22001753369 | C19: ACC RESALE TEXTBOOK VATABLE SALES | D19: AC | E19: 0 | F19: -395535.09 | G19: -387429.83 | H19: -119263.16 | I19: 0 | J19: N | K19: N | L19: Income
A20: 22001000384 | B20: 22001804357 | C20: ACC RESALE TEXTBOOKS CAPITAL EQUIP | D20: AC | E20: 0 | F20: 0 | G20: 0 | H20: 0 | I20: 0 | J20: N | K20: N | L20: Expenses
A21: 22001000384 | B21: 22001882368 | C21: ACC RESALE TEXTBOOK TRANSFERS | D21: AC | E21: 0 | F21: 0 | G21: 0 | H21: 0 | I21: 8783.49 | J21: N | K21: N | L21: Transfers
A22: 22005000384 | B22: 22005031302 | C22: ACCOUNTING RESALE COURSE TEMP SALS | D22: AC | E22: 0 | F22: 0 | G22: 0 | H22: 0 | I22: 0 | J22: N | K22: N | L22: Expenses
A23: 22005000384 | B23: 22005441302 | C23: ACCOUNTING RESALE TEAS & FUNCTIONS | D23: AC | E23: 0 | F23: 0 | G23: 0 | H23: 35508.37 | I23: 0 | J23: N | K23: N | L23: Expenses
A24: 22005000384 | B24: 22005551302 | C24: ACCOUNTING RESALE TRAVEL & ACCOMM | D24: AC | E24: 0 | F24: 0 | G24: 0 | H24: 4491 | I24: 0 | J24: N | K24: N | L24: Expenses
A25: 22005000384 | B25: 22005631302 | C25: ACCOUNTING RESALE COURSE STOCK | D25: AC | E25: 0 | F25: 0 | G25: 1568.4 | H25: 0 | I25: 0 | J25: N | K25: N | L25: Expenses
A26: 22005000384 | B26: 22005632302 | C26: ACCOUNTING RESALE COURSE EXPENSES | D26: AC | E26: 0 | F26: 20071.6 | G26: 19838.47 | H26: 23818 | I26: 21130.85 | J26: N | K26: N | L26: Expenses
A27: 22005000384 | B27: 22005640302 | C27: ACCOUNTING RESALE VATABLE PURCHASES | D27: AC | E27: 0 | F27: 0 | G27: 0 | H27: 0 | I27: 0 | J27: N | K27: N | L27: Expenses
A28: 22005000384 | B28: 22005641312 | C28: ACCOUNTING RESALE COURSE PRINT UNIT | D28: AC | E28: 0 | F28: 137858.97 | G28: 169988.17 | H28: 256918.16 | I28: 233930.03 | J28: N | K28: N | L28: Expenses
A29: 22005000384 | B29: 22005642312 | C29: ACCOUNTING RESALE P UNIT STOCK | D29: AC | E29: 0 | F29: 230 | G29: 230 | H29: 685 | I29: 0 | J29: N | K29: N | L29: Expenses
A30: 22005000384 | B30: 22005752369 | C30: ACCOUNTING RESALE COURSE HANDOUT IN | D30: AC | E30: 0 | F30: -201310 | G30: -201310 | H30: -309845 | I30: -293525.87 | J30: N | K30: N | L30: Income
A31: 22005000384 | B31: 22005753369 | C31: ACCOUNTING RESALE VATABLE SALES | D31: AC | E31: 0 | F31: 0 | G31: 0 | H31: 0 | I31: -4578.95 | J31: N | K31: N | L31: Income
A32: 22005000384 | B32: 22005804357 | C32: ACCOUNTING RESALE CAP EQUIPMENT | D32: AC | E32: 0 | F32: 0 | G32: 0 | H32: 0 | I32: 0 | J32: N | K32: N | L32: Expenses
A33: 22005000384 | B33: 22005882368 | C33: ACCOUNT RESALE COURSE TRANSFERS | D33: AC | E33: 0 | F33: 0 | G33: 0 | H33: 0 | I33: 34392.8 | J33: N | K33: N | L33: Transfers
A34: 22007000184 | B34: 22007031104 | C34: ACCOUNTING SUMMER SCHOOL TEMP SALS | D34: AC | E34: 0 | F34: 2500 | G34: 2500 | H34: 112900 | I34: 250553 | J34: N | K34: N | L34: Expenses
A35: 22007000184 | B35: 22007400104 | C35: ACCOUNTING SUMMER SCHOOL EXPENSES | D35: AC | E35: 0 | F35: 0 | G35: 0 | H35: 92531.99 | I35: 97993.63 | J35: N | K35: N | L35: Expenses
A36: 22007000184 | B36: 22007441104 | C36: ACCOUNTING SUMMER SCHOOL ENTERTAINM | D36: AC | E36: 0 | F36: 0 | G36: 0 | H36: 0 | I36: 1248.75 | J36: N | K36: N | L36: Expenses
A37: 22007000184 | B37: 22007485112 | C37: ACCOUNTING SUMMER SCHOOL PR UNIT | D37: AC | E37: 0 | F37: 0 | G37: 0 | H37: 0 | I37: 3026.05 | J37: N | K37: N | L37: Expenses
A38: 22007000184 | B38: 22007784176 | C38: ACCOUNTING SCHOOL COURSE FEES | D38: AC | E38: 0 | F38: 0 | G38: 0 | H38: -130500 | I38: -225250 | J38: N | K38: N | L38: Income
A39: 22007000184 | B39: 22007804157 | C39: ACCOUNTING SUMMER SCHOOL CAP EQUIPM | D39: AC | E39: 0 | F39: 8156.7 | G39: 8156.7 | H39: 0 | I39: 0 | J39: N | K39: N | L39: Expenses
A40: 22007000184 | B40: 22007880168 | C40: ACCOUNTING SUMMER SCHOOL TRANSFERS | D40: AC | E40: 0 | F40: 0 | G40: 0 | H40: 0 | I40: 0 | J40: N | K40: N | L40: Transfers
A41: 22007000184 | B41: 22007881168 | C41: ACCOUNTING SUMMER SCH CAP EQUIP TRF | D41: AC | E41: 0 | F41: 0 | G41: 0 | H41: 0 | I41: 0 | J41: N | K41: N | L41: Transfers
A42: 30083000384 | B42: 30083552305 | C42: BUNTING M RU GRANT CD16/2013 TRAVEL | D42: AC | E42: 0 | F42: 0 | G42: 0 | H42: 130.77 | I42: 0 | J42: N | K42: N | L42: Expenses
A43: 30083000384 | B43: 30083824357 | C43: BUNTING M RU GRANT CD16/2013 BOOKS | D43: AC | E43: 0 | F43: 0 | G43: 0 | H43: 769.23 | I43: 0 | J43: N | K43: N | L43: Expenses
A44: 30083000384 | B44: 30083881368 | C44: BUNTING M RU GRANT CD16/2013 TRANSF | D44: AC | E44: 0 | F44: 0 | G44: 0 | H44: -900 | I44: 0 | J44: N | K44: N | L44: Transfers
A45: 30141000384 | B45: 30141551305 | C45: BROUWER N RU GRANT TS140/2011 EXP | D45: AC | E45: 0 | F45: 0 | G45: 0 | H45: 0 | I45: 0 | J45: N | K45: N | L45: Expenses
A46: 30141000384 | B46: 30141881368 | C46: BROUWER N RU GRANT TS140/2011 TRF | D46: AC | E46: 0 | F46: 0 | G46: 0 | H46: 0 | I46: -59 | J46: N | K46: N | L46: Transfers
A47: 30517000384 | B47: 30517551305 | C47: MYERS L RU GRANT TS41/2012 TRAVEL | D47: AC | E47: 0 | F47: 0 | G47: 0 | H47: 9000 | I47: 23093 | J47: N | K47: N | L47: Expenses
A48: 30517000384 | B48: 30517552305 | C48: MYERS L RU GRANT TS142/2012 TRAVEL | D48: AC | E48: 0 | F48: 0 | G48: 0 | H48: 0 | I48: 6464 | J48: N | K48: N | L48: Expenses
A49: 30517000384 | B49: 30517553305 | C49: MYERS L RU GRANT CD17/2012 TRAVEL | D49: AC | E49: 0 | F49: 0 | G49: 0 | H49: 0 | I49: 5759 | J49: N | K49: N | L49: Expenses
A50: 30517000384 | B50: 30517881368 | C50: MYERS L RU GRANT TS41/2012 TRANSFER | D50: AC | E50: 0 | F50: 0 | G50: 0 | H50: 0 | I50: -23093 | J50: N | K50: N | L50: Transfers
A51: 30517000384 | B51: 30517882368 | C51: MYERS L RU GRANT TS142/2012 TRANSFE | D51: AC | E51: 0 | F51: 0 | G51: 0 | H51: 1608 | I51: -7000 | J51: N | K51: N | L51: Transfers
A52: 30517000384 | B52: 30517883368 | C52: MYERS L RU GRANT CD17/2012 TRANSFER | D52: AC | E52: 0 | F52: 0 | G52: 0 | H52: 0 | I52: -5759 | J52: N | K52: N | L52: Transfers
A53: 30517002384 | B53: 30157553305 | C53: MYERS L RU GRANT CD17/2012 TRAVEL | D53: AC | E53: 0 | F53: 0 | G53: 0 | H53: 0 | I53: 0 | J53: N | K53: N | L53: Expenses
A54: 30540000384 | B54: 30540551305 | C54: HARNETT H RU GRANT CD18/2012 TVL | D54: AC | E54: 0 | F54: 0 | G54: 0 | H54: 0 | I54: 4767 | J54: N | K54: N | L54: Expenses
A55: 30540000384 | B55: 30540552305 | C55: HARNETT H RU GRANT CD19/2012 TRAVEL | D55: AC | E55: 0 | F55: 0 | G55: 0 | H55: 0 | I55: 0 | J55: N | K55: N | L55: Expenses
A56: 30540000384 | B56: 30540880368 | C56: HARNETT H RU GRANT CD18/2012 TRFS | D56: AC | E56: 0 | F56: 0 | G56: 0 | H56: 0 | I56: -4767 | J56: N | K56: N | L56: Transfers
A57: 30540000384 | B57: 30540881368 | C57: HARNETT H RU GRANT CD19/2012 TRFS | D57: AC | E57: 0 | F57: 0 | G57: 0 | H57: 14000 | I57: -7000 | J57: N | K57: N | L57: Transfers
A58: 30608000384 | B58: 30608551305 | C58: STACK L RU GRANT CD06/2014 TRAVEL | D58: AC | E58: 0 | F58: 0 | G58: 107499.84 | H58: 0 | I58: 8706.63 | J58: N | K58: N | L58: Expenses
A59: 30608000384 | B59: 30608552305 | C59: STACK L RU GRANT CD08/2012 TRAVEL | D59: AC | E59: 0 | F59: 0 | G59: 0 | H59: 0 | I59: 5383.34 | J59: N | K59: N | L59: Expenses
A60: 30608000384 | B60: 30608553305 | C60: STACK L RU GRANT CD11/2013 TRAVEL | D60: AC | E60: 0 | F60: 0 | G60: 0 | H60: 44688 | I60: 0 | J60: N | K60: N | L60: Expenses
A61: 30608000384 | B61: 30608554305 | C61: STACK L RU GRANT RD50/2013 TRAVEL | D61: AC | E61: 0 | F61: 0 | G61: 0 | H61: 50000 | I61: 0 | J61: N | K61: N | L61: Expenses
A62: 30608000384 | B62: 30608881368 | C62: STACK L RU GRANT CD06/2014 TRANSFER | D62: AC | E62: 0 | F62: -147046.6 | G62: -147046.6 | H62: 7173.48 | I62: -10500 | J62: N | K62: N | L62: Transfers
A63: 30608000384 | B63: 30608882368 | C63: STACK L RU GRANT CD08/2012 TRANSFER | D63: AC | E63: 0 | F63: 0 | G63: 0 | H63: 14466.64 | I63: -9000 | J63: N | K63: N | L63: Transfers
A64: 32015000384 | B64: 32015552305 | C64: BEZUIDENHOUT P RU GRANT DEAN CD6/10 | D64: AC | E64: 0 | F64: 0 | G64: 0 | H64: 0 | I64: 0 | J64: N | K64: N | L64: Expenses
A65: 32015000384 | B65: 32015553305 | C65: BEZUIDENHOUT P RU GRANT T&S143/2010 | D65: AC | E65: 0 | F65: 0 | G65: 0 | H65: 0 | I65: 0 | J65: N | K65: N | L65: Expenses
A66: 32015000384 | B66: 32015881368 | C66: BEZUIDENHOUT P RU GRANT TRANSFERS | D66: AC | E66: 0 | F66: 0 | G66: 0 | H66: 0 | I66: 0 | J66: N | K66: N | L66: Transfers
A67: 51043000184 | B67: 51043500105 | C67: ACCOUNTING SEMINAR RUNNING EXPENSES | D67: AC | E67: 0 | F67: 0 | G67: 0 | H67: 0 | I67: 0 | J67: N | K67: N | L67: =IF($B67="",0,IF(MID($B67,6,2)="88","Transfers",IF(AND(VALUE(MID($B67,6,3))>700,VALUE(MID($B67,6,3))<800),"Income","Expenses"))) -> Expenses
A68: 51043000184 | B68: 51043784176 | C68: ACCOUNTING SEMINAR INCOME | D68: AC | E68: 0 | F68: 0 | G68: 0 | H68: 0 | I68: 0 | J68: N | K68: N | L68: Income
A69: 51043000184 | B69: 51043880168 | C69: ACCOUNTING SEMINAR TRANSFER ACCOUNT | D69: AC | E69: 0 | F69: 0 | G69: 0 | H69: 0 | I69: 0 | J69: N | K69: N | L69: Transfers
A70: 52105000184 | B70: 52105771173 | C70: ACCOUNTING DEPT INVESTMENT INTEREST | D70: AC | E70: 0 | F70: -2419.41 | G70: -2872.56 | H70: -4067.14 | I70: -4357.63 | J70: N | K70: N | L70: Income
A71: 52105000184 | B71: 52105880168 | C71: ACCOUNTING DEPT INVESTMENT TRANSFER | D71: AC | E71: 0 | F71: 0 | G71: 0 | H71: 0 | I71: 0 | J71: N | K71: N | L71: Transfers
A72: 52500000184 | B72: 52500771173 | C72: ACCT SUMMER SCHOOL INV INT 22007 | D72: AC | E72: 0 | F72: -1058.1 | G72: -1256.28 | H72: -1778.74 | I72: -1905.75 | J72: N | K72: N | L72: Income
A73: 52500000184 | B73: 52500880168 | C73: ACCT SUMMER SCHOOL INV TRFS 22007 | D73: AC | E73: 0 | F73: 0 | G73: 0 | H73: 0 | I73: 0 | J73: N | K73: N | L73: Transfers
A74: 53010000184 | B74: 22003551102 | C74: ACCOUNTING TEMP TEACH TRAVEL | D74: AC | E74: 0 | F74: 0 | G74: 0 | H74: 0 | I74: 0 | J74: N | K74: N | L74: Expenses
A75: 53010000184 | B75: 22003500102 | C75: ACCOUNTING TEMP TEACHING EXPENSES | D75: AC | E75: 0 | F75: 0 | G75: 0 | H75: 0 | I75: 0 | J75: N | K75: N | L75: Expenses
A76: 53010000184 | B76: 22003101102 | C76: ACCOUNTING TEMP TEACH UIF | D76: AC | E76: 0 | F76: 0 | G76: 0 | H76: 0 | I76: 619.32 | J76: N | K76: N | L76: Expenses
A77: 53010000184 | B77: 22003031102 | C77: ACCOUNTING TEMP TEACH SALARIES | D77: AC | E77: 0 | F77: 0 | G77: 0 | H77: 0 | I77: 47535.28 | J77: N | K77: N | L77: Expenses
A78: 53010000184 | B78: 22003880168 | C78: ACCOUNTING TEMP TEACH GRANT | D78: AC | E78: 0 | F78: 0 | G78: 0 | H78: 0 | I78: 0 | J78: N | K78: N | L78: Transfers
A79: 53010000184 | B79: 22003881168 | C79: ACCOUNTING TEMP TEACH TRANSFER | D79: AC | E79: 0 | F79: 0 | G79: 0 | H79: 0 | I79: 0 | J79: N | K79: N | L79: Transfers
A80: 55051000184 | B80: 55051880168 | C80: PAAB TRANSFERS | D80: AC | E80: 0 | F80: 0 | G80: 0 | H80: 0 | I80: 0 | J80: N | K80: N | L80: Transfers
A81: 55051000184 | B81: 55051769172 | C81: PAAB NON-S18A DONATIONS | D81: AC | E81: 0 | F81: 0 | G81: 0 | H81: 0 | I81: 0 | J81: N | K81: N | L81: Income
A82: 55051000184 | B82: 55051500102 | C82: PAAB EXPENSES | D82: AC | E82: 0 | F82: 0 | G82: 0 | H82: 0 | I82: 0 | J82: N | K82: N | L82: Expenses
A83: 55051000184 | B83: 55051031102 | C83: PAAB TEMP SALARIES | D83: AC | E83: 0 | F83: 0 | G83: 0 | H83: 0 | I83: 0 | J83: N | K83: N | L83: Expenses
A84: 59053000384 | B84: 59053760372 | C84: STACK L CURRICULUM DEV INCOME | D84: AC | E84: 0 | F84: 0 | G84: 0 | H84: 0 | I84: 0 | J84: N | K84: N | L84: Income
A85: 59053000384 | B85: 59053804357 | C85: STACK L CURRICULUM DEV ASSETS | D85: AC | E85: 0 | F85: 0 | G85: 0 | H85: 0 | I85: 0 | J85: N | K85: N | L85: Expenses
A86: 59053000384 | B86: 59053880368 | C86: STACK L CURRICULUM DEV TRANSFERS | D86: AC | E86: 0 | F86: 0 | G86: 0 | H86: 0 | I86: -10000 | J86: N | K86: N | L86: Transfers
A87: 59053000384 | B87: 59053500305 | C87: STACK L CURRICULUM DEV GEN EXP | D87: AC | E87: 0 | F87: 0 | G87: 0 | H87: 0 | I87: 0 | J87: N | K87: N | L87: Expenses
L88: =IF($B88="",0,IF(MID($B88,6,2)="88","Transfers",IF(AND(VALUE(MID($B88,6,3))>700,VALUE(MID($B88,6,3))<800),"Income","Expenses"))) -> 0
L89: 0
L90: 0
L91: 0
L92: 0
L93: 0
L94: 0
L95: 0
L96: 0
L97: 0
L98: 0
L99: 0
L100: 0
L101: 0
L102: 0
L103: 0
L104: 0
L105: 0
L106: 0
L107: 0
L108: 0
L109: 0
L110: 0
L111: 0
L112: 0
L113: 0
L114: 0
L115: 0
L116: 0
L117: 0
L118: 0
L119: 0
L120: 0
L121: 0
L122: 0
L123: 0
L124: 0
L125: 0
L126: 0
L127: 0
L128: 0
L129: 0
L130: 0
L131: =IF($B131="",0,IF(MID($B131,6,2)="88","Transfers",IF(AND(VALUE(MID($B131,6,3))>700,VALUE(MID($B131,6,3))<800),"Income","Expenses"))) -> 0
L132: 0
L133: 0
L134: 0
L135: 0
L136: 0
L137: 0
L138: 0
L139: 0
L140: 0
L141: 0
L142: 0
L143: 0
L144: 0
L145: 0
L146: 0
L147: 0
L148: 0
L149: 0
L150: 0
L151: 0
L152: 0
L153: 0
L154: 0
L155: 0
L156: 0
L157: 0
L158: 0
L159: 0
L160: 0
L161: 0
L162: 0
L163: 0
L164: 0
L165: 0
L166: 0
L167: 0
L168: 0
L169: 0
L170: 0
L171: 0
L172: 0
L173: 0
L174: 0
L175: 0
L176: 0
L177: 0
L178: 0
L179: 0
L180: 0
L181: 0
L182: 0
L183: 0
L184: 0
L185: 0
L186: 0
L187: 0
L188: 0
L189: 0
L190: 0
L191: 0
L192: 0
L193: 0
L194: 0
L195: =IF($B195="",0,IF(MID($B195,6,2)="88","Transfers",IF(AND(VALUE(MID($B195,6,3))>700,VALUE(MID($B195,6,3))<800),"Income","Expenses"))) -> 0
L196: 0
L197: 0
L198: 0
L199: 0
L200: 0
... 345 more rows

Sheet Report
B1: RHODES UNIVERSITY | C1: RETAINED INCOME ACCOUNT: | F1: 22000000184 | G1: =TODAY() -> 2014-08-06
B2: Enter Department name in this cell | C2: RETAINED INCOME ACCOUNT DESCRIPTION:
B4: BUDGET 2015 | C4: BUDGET | D4: FORECAST | E4: ACTUAL | F4: ACTUAL | G4: ACTUAL
B5: RUNNING GRANT | C5: 2015 | D5: 2014 | E5: YTD 2014 | F5: 2013 | G5: 2012
J6: Row Labels
B7: INCOME | C7: =SUM(C8:C12) -> 0 | D7: =SUM(D8:D12) -> 0 | E7: 0 | F7: 0 | G7: 0 | J7: 53010000184
B8: =IF(Ret_income!T5="",0,Ret_income!T5) -> 0 | C8: =Ret_income!V5 -> 0 | D8: =Ret_income!W5 -> 0 | E8: =Ret_income!X5 -> 0 | F8: =Ret_income!Y5 -> 0 | G8: =Ret_income!Z5 -> 0 | J8: (blank)
B9: =IF(Ret_income!T6="",0,Ret_income!T6) -> 0 | C9: =Ret_income!V6 -> 0 | D9: =Ret_income!W6 -> 0 | E9: =Ret_income!X6 -> 0 | F9: =Ret_income!Y6 -> 0 | G9: =Ret_income!Z6 -> 0 | J9: 22000000184
B10: =IF(Ret_income!T7="",0,Ret_income!T7) -> 0 | C10: =Ret_income!V7 -> 0 | D10: =Ret_income!W7 -> 0 | E10: =Ret_income!X7 -> 0 | F10: =Ret_income!Y7 -> 0 | G10: =Ret_income!Z7 -> 0 | J10: 22001000384
B11: =IF(Ret_income!T8="",0,Ret_income!T8) -> 0 | C11: =Ret_income!V8 -> 0 | D11: =Ret_income!W8 -> 0 | E11: =Ret_income!X8 -> 0 | F11: =Ret_income!Y8 -> 0 | G11: =Ret_income!Z8 -> 0 | J11: 22005000384
B12: =IF(Ret_income!T9="",0,Ret_income!T9) -> 0 | C12: =Ret_income!V9 -> 0 | D12: =Ret_income!W9 -> 0 | E12: =Ret_income!X9 -> 0 | F12: =Ret_income!Y9 -> 0 | G12: =Ret_income!Z9 -> 0 | J12: 22007000184
B13: =IF(Ret_income!T10="",0,Ret_income!T10) -> 0 | C13: =Ret_income!V10 -> 0 | D13: =Ret_income!W10 -> 0 | E13: =Ret_income!X10 -> 0 | F13: =Ret_income!Y10 -> 0 | G13: =Ret_income!Z10 -> 0 | J13: 30083000384
B14: =IF(Ret_income!T11="",0,Ret_income!T11) -> 0 | C14: =Ret_income!V11 -> 0 | D14: =Ret_income!W11 -> 0 | E14: =Ret_income!X11 -> 0 | F14: =Ret_income!Y11 -> 0 | G14: =Ret_income!Z11 -> 0 | J14: 30141000384
B15: =IF(Ret_income!T12="",0,Ret_income!T12) -> 0 | C15: =Ret_income!V12 -> 0 | D15: =Ret_income!W12 -> 0 | E15: =Ret_income!X12 -> 0 | F15: =Ret_income!Y12 -> 0 | G15: =Ret_income!Z12 -> 0 | J15: 30517000384
B16: =IF(Ret_income!T13="",0,Ret_income!T13) -> 0 | C16: =Ret_income!V13 -> 0 | D16: =Ret_income!W13 -> 0 | E16: =Ret_income!X13 -> 0 | F16: =Ret_income!Y13 -> 0 | G16: =Ret_income!Z13 -> 0 | J16: 30517002384
B17: =IF(Ret_income!T14="",0,Ret_income!T14) -> 0 | C17: =Ret_income!V14 -> 0 | D17: =Ret_income!W14 -> 0 | E17: =Ret_income!X14 -> 0 | F17: =Ret_income!Y14 -> 0 | G17: =Ret_income!Z14 -> 0 | J17: 30540000384
B18: =IF(Ret_income!T15="",0,Ret_income!T15) -> 0 | C18: =Ret_income!V15 -> 0 | D18: =Ret_income!W15 -> 0 | E18: =Ret_income!X15 -> 0 | F18: =Ret_income!Y15 -> 0 | G18: =Ret_income!Z15 -> 0 | J18: 30608000384
B19: =IF(Ret_income!T16="",0,Ret_income!T16) -> 0 | C19: =Ret_income!V16 -> 0 | D19: =Ret_income!W16 -> 0 | E19: =Ret_income!X16 -> 0 | F19: =Ret_income!Y16 -> 0 | G19: =Ret_income!Z16 -> 0 | J19: 32015000384
J20: 51043000184
B21: EXPENDITURE | C21: =SUM(C22:C77) -> 0 | D21: =SUM(D22:D77) -> 165804 | E21: =SUM(E22:E77) -> 138198.91 | F21: =SUM(F22:F77) -> 176766.21 | G21: =SUM(G22:G77) -> 177900.81 | J21: 52105000184
B22: =IF(Ret_income!AG5="",0,Ret_income!AG5) -> ACCOUNTING DEPT SUPP/SERV | C22: =Ret_income!AI5 -> 0 | D22: =Ret_income!AJ5 -> 83113 | E22: =Ret_income!AK5 -> 61252.38 | F22: =Ret_income!AL5 -> 91138.87 | G22: =Ret_income!AM5 -> 66713.27 | J22: 52500000184
B23: =IF(Ret_income!AG6="",0,Ret_income!AG6) -> ACCOUNTING DEPT ENTERTAINMENT | C23: =Ret_income!AI6 -> 0 | D23: =Ret_income!AJ6 -> 6872 | E23: =Ret_income!AK6 -> 7412.8 | F23: =Ret_income!AL6 -> 29940.69 | G23: =Ret_income!AM6 -> 10571.82 | J23: 55051000184
B24: =IF(Ret_income!AG7="",0,Ret_income!AG7) -> ACCOUNTING DEPT PRINT UNIT | C24: =Ret_income!AI7 -> 0 | D24: =Ret_income!AJ7 -> 0 | E24: =Ret_income!AK7 -> 0 | F24: =Ret_income!AL7 -> 179 | G24: =Ret_income!AM7 -> 0 | J24: 59053000384
B25: =IF(Ret_income!AG8="",0,Ret_income!AG8) -> ACCOUNTING DEPT SUBSCRIPTIONS | C25: =Ret_income!AI8 -> 0 | D25: =Ret_income!AJ8 -> 0 | E25: =Ret_income!AK8 -> 0 | F25: =Ret_income!AL8 -> 0 | G25: =Ret_income!AM8 -> 0
B26: =IF(Ret_income!AG9="",0,Ret_income!AG9) -> ACCOUNTING DEPT TELEPHONE | C26: =Ret_income!AI9 -> 0 | D26: =Ret_income!AJ9 -> 3882 | E26: =Ret_income!AK9 -> 5324.62 | F26: =Ret_income!AL9 -> 4427.59 | G26: =Ret_income!AM9 -> 4065.07
B27: =IF(Ret_income!AG10="",0,Ret_income!AG10) -> ACCOUNTING DEPT TRAVEL | C27: =Ret_income!AI10 -> 0 | D27: =Ret_income!AJ10 -> 48933 | E27: =Ret_income!AK10 -> 41205.49 | F27: =Ret_income!AL10 -> 7016.63 | G27: =Ret_income!AM10 -> 52727.6
B28: =IF(Ret_income!AG11="",0,Ret_income!AG11) -> ACCOUNTING DEPT DATALINE RENTAL | C28: =Ret_income!AI11 -> 0 | D28: =Ret_income!AJ11 -> 0 | E28: =Ret_income!AK11 -> 0 | F28: =Ret_income!AL11 -> 0 | G28: =Ret_income!AM11 -> 0
B29: =IF(Ret_income!AG12="",0,Ret_income!AG12) -> ACCOUNTING DEPT CAP EQUIPMENT | C29: =Ret_income!AI12 -> 0 | D29: =Ret_income!AJ12 -> 0 | E29: =Ret_income!AK12 -> 0 | F29: =Ret_income!AL12 -> 2655 | G29: =Ret_income!AM12 -> 799
B30: =IF(Ret_income!AG13="",0,Ret_income!AG13) -> ACCOUNTING DEPT BOOKS | C30: =Ret_income!AI13 -> 0 | D30: =Ret_income!AJ13 -> 23004 | E30: =Ret_income!AK13 -> 23003.62 | F30: =Ret_income!AL13 -> 41408.43 | G30: =Ret_income!AM13 -> 43024.05
B31: =IF(Ret_income!AG14="",0,Ret_income!AG14) -> 0 | C31: =Ret_income!AI14 -> 0 | D31: =Ret_income!AJ14 -> 0 | E31: =Ret_income!AK14 -> 0 | F31: =Ret_income!AL14 -> 0 | G31: =Ret_income!AM14 -> 0
B32: =IF(Ret_income!AG15="",0,Ret_income!AG15) -> 0 | C32: =Ret_income!AI15 -> 0 | D32: =Ret_income!AJ15 -> 0 | E32: =Ret_income!AK15 -> 0 | F32: =Ret_income!AL15 -> 0 | G32: =Ret_income!AM15 -> 0
B33: =IF(Ret_income!AG16="",0,Ret_income!AG16) -> 0 | C33: =Ret_income!AI16 -> 0 | D33: =Ret_income!AJ16 -> 0 | E33: =Ret_income!AK16 -> 0 | F33: =Ret_income!AL16 -> 0 | G33: =Ret_income!AM16 -> 0
B34: =IF(Ret_income!AG17="",0,Ret_income!AG17) -> 0 | C34: =Ret_income!AI17 -> 0 | D34: =Ret_income!AJ17 -> 0 | E34: =Ret_income!AK17 -> 0 | F34: =Ret_income!AL17 -> 0 | G34: =Ret_income!AM17 -> 0
B35: =IF(Ret_income!AG18="",0,Ret_income!AG18) -> 0 | C35: =Ret_income!AI18 -> 0 | D35: =Ret_income!AJ18 -> 0 | E35: =Ret_income!AK18 -> 0 | F35: =Ret_income!AL18 -> 0 | G35: =Ret_income!AM18 -> 0
B36: =IF(Ret_income!AG19="",0,Ret_income!AG19) -> 0 | C36: =Ret_income!AI19 -> 0 | D36: =Ret_income!AJ19 -> 0 | E36: =Ret_income!AK19 -> 0 | F36: =Ret_income!AL19 -> 0 | G36: =Ret_income!AM19 -> 0
B37: =IF(Ret_income!AG20="",0,Ret_income!AG20) -> 0 | C37: =Ret_income!AI20 -> 0 | D37: =Ret_income!AJ20 -> 0 | E37: =Ret_income!AK20 -> 0 | F37: =Ret_income!AL20 -> 0 | G37: =Ret_income!AM20 -> 0
B38: =IF(Ret_income!AG21="",0,Ret_income!AG21) -> 0 | C38: =Ret_income!AI21 -> 0 | D38: =Ret_income!AJ21 -> 0 | E38: =Ret_income!AK21 -> 0 | F38: =Ret_income!AL21 -> 0 | G38: =Ret_income!AM21 -> 0
B39: =IF(Ret_income!AG22="",0,Ret_income!AG22) -> 0 | C39: =Ret_income!AI22 -> 0 | D39: =Ret_income!AJ22 -> 0 | E39: =Ret_income!AK22 -> 0 | F39: =Ret_income!AL22 -> 0 | G39: =Ret_income!AM22 -> 0
B40: =IF(Ret_income!AG23="",0,Ret_income!AG23) -> 0 | C40: =Ret_income!AI23 -> 0 | D40: =Ret_income!AJ23 -> 0 | E40: =Ret_income!AK23 -> 0 | F40: =Ret_income!AL23 -> 0 | G40: =Ret_income!AM23 -> 0
B41: =IF(Ret_income!AG24="",0,Ret_income!AG24) -> 0 | C41: =Ret_income!AI24 -> 0 | D41: =Ret_income!AJ24 -> 0 | E41: =Ret_income!AK24 -> 0 | F41: =Ret_income!AL24 -> 0 | G41: =Ret_income!AM24 -> 0
B42: =IF(Ret_income!AG25="",0,Ret_income!AG25) -> 0 | C42: =Ret_income!AI25 -> 0 | D42: =Ret_income!AJ25 -> 0 | E42: =Ret_income!AK25 -> 0 | F42: =Ret_income!AL25 -> 0 | G42: =Ret_income!AM25 -> 0
B43: =IF(Ret_income!AG26="",0,Ret_income!AG26) -> 0 | C43: =Ret_income!AI26 -> 0 | D43: =Ret_income!AJ26 -> 0 | E43: =Ret_income!AK26 -> 0 | F43: =Ret_income!AL26 -> 0 | G43: =Ret_income!AM26 -> 0
B44: =IF(Ret_income!AG27="",0,Ret_income!AG27) -> 0 | C44: =Ret_income!AI27 -> 0 | D44: =Ret_income!AJ27 -> 0 | E44: =Ret_income!AK27 -> 0 | F44: =Ret_income!AL27 -> 0 | G44: =Ret_income!AM27 -> 0
B45: =IF(Ret_income!AG28="",0,Ret_income!AG28) -> 0 | C45: =Ret_income!AI28 -> 0 | D45: =Ret_income!AJ28 -> 0 | E45: =Ret_income!AK28 -> 0 | F45: =Ret_income!AL28 -> 0 | G45: =Ret_income!AM28 -> 0
B46: =IF(Ret_income!AG29="",0,Ret_income!AG29) -> 0 | C46: =Ret_income!AI29 -> 0 | D46: =Ret_income!AJ29 -> 0 | E46: =Ret_income!AK29 -> 0 | F46: =Ret_income!AL29 -> 0 | G46: =Ret_income!AM29 -> 0
B47: =IF(Ret_income!AG30="",0,Ret_income!AG30) -> 0 | C47: =Ret_income!AI30 -> 0 | D47: =Ret_income!AJ30 -> 0 | E47: =Ret_income!AK30 -> 0 | F47: =Ret_income!AL30 -> 0 | G47: =Ret_income!AM30 -> 0
B48: =IF(Ret_income!AG31="",0,Ret_income!AG31) -> 0 | C48: =Ret_income!AI31 -> 0 | D48: =Ret_income!AJ31 -> 0 | E48: =Ret_income!AK31 -> 0 | F48: =Ret_income!AL31 -> 0 | G48: =Ret_income!AM31 -> 0
B49: =IF(Ret_income!AG32="",0,Ret_income!AG32) -> 0 | C49: =Ret_income!AI32 -> 0 | D49: =Ret_income!AJ32 -> 0 | E49: =Ret_income!AK32 -> 0 | F49: =Ret_income!AL32 -> 0 | G49: =Ret_income!AM32 -> 0
B50: =IF(Ret_income!AG33="",0,Ret_income!AG33) -> 0 | C50: =Ret_income!AI33 -> 0 | D50: =Ret_income!AJ33 -> 0 | E50: =Ret_income!AK33 -> 0 | F50: =Ret_income!AL33 -> 0 | G50: =Ret_income!AM33 -> 0
B51: =IF(Ret_income!AG34="",0,Ret_income!AG34) -> 0 | C51: =Ret_income!AI34 -> 0 | D51: =Ret_income!AJ34 -> 0 | E51: =Ret_income!AK34 -> 0 | F51: =Ret_income!AL34 -> 0 | G51: =Ret_income!AM34 -> 0
B52: =IF(Ret_income!AG35="",0,Ret_income!AG35) -> 0 | C52: =Ret_income!AI35 -> 0 | D52: =Ret_income!AJ35 -> 0 | E52: =Ret_income!AK35 -> 0 | F52: =Ret_income!AL35 -> 0 | G52: =Ret_income!AM35 -> 0
B53: =IF(Ret_income!AG36="",0,Ret_income!AG36) -> 0 | C53: =Ret_income!AI36 -> 0 | D53: =Ret_income!AJ36 -> 0 | E53: =Ret_income!AK36 -> 0 | F53: =Ret_income!AL36 -> 0 | G53: =Ret_income!AM36 -> 0
B54: =IF(Ret_income!AG37="",0,Ret_income!AG37) -> 0 | C54: =Ret_income!AI37 -> 0 | D54: =Ret_income!AJ37 -> 0 | E54: =Ret_income!AK37 -> 0 | F54: =Ret_income!AL37 -> 0 | G54: =Ret_income!AM37 -> 0
B55: =IF(Ret_income!AG38="",0,Ret_income!AG38) -> 0 | C55: =Ret_income!AI38 -> 0 | D55: =Ret_income!AJ38 -> 0 | E55: =Ret_income!AK38 -> 0 | F55: =Ret_income!AL38 -> 0 | G55: =Ret_income!AM38 -> 0
B56: =IF(Ret_income!AG39="",0,Ret_income!AG39) -> 0 | C56: =Ret_income!AI39 -> 0 | D56: =Ret_income!AJ39 -> 0 | E56: =Ret_income!AK39 -> 0 | F56: =Ret_income!AL39 -> 0 | G56: =Ret_income!AM39 -> 0
B57: =IF(Ret_income!AG40="",0,Ret_income!AG40) -> 0 | C57: =Ret_income!AI40 -> 0 | D57: =Ret_income!AJ40 -> 0 | E57: =Ret_income!AK40 -> 0 | F57: =Ret_income!AL40 -> 0 | G57: =Ret_income!AM40 -> 0
B58: =IF(Ret_income!AG41="",0,Ret_income!AG41) -> 0 | C58: =Ret_income!AI41 -> 0 | D58: =Ret_income!AJ41 -> 0 | E58: =Ret_income!AK41 -> 0 | F58: =Ret_income!AL41 -> 0 | G58: =Ret_income!AM41 -> 0
B59: =IF(Ret_income!AG42="",0,Ret_income!AG42) -> 0 | C59: =Ret_income!AI42 -> 0 | D59: =Ret_income!AJ42 -> 0 | E59: =Ret_income!AK42 -> 0 | F59: =Ret_income!AL42 -> 0 | G59: =Ret_income!AM42 -> 0
B60: =IF(Ret_income!AG43="",0,Ret_income!AG43) -> 0 | C60: =Ret_income!AI43 -> 0 | D60: =Ret_income!AJ43 -> 0 | E60: =Ret_income!AK43 -> 0 | F60: =Ret_income!AL43 -> 0 | G60: =Ret_income!AM43 -> 0
B61: =IF(Ret_income!AG44="",0,Ret_income!AG44) -> 0 | C61: =Ret_income!AI44 -> 0 | D61: =Ret_income!AJ44 -> 0 | E61: =Ret_income!AK44 -> 0 | F61: =Ret_income!AL44 -> 0 | G61: =Ret_income!AM44 -> 0
B62: =IF(Ret_income!AG45="",0,Ret_income!AG45) -> 0 | C62: =Ret_income!AI45 -> 0 | D62: =Ret_income!AJ45 -> 0 | E62: =Ret_income!AK45 -> 0 | F62: =Ret_income!AL45 -> 0 | G62: =Ret_income!AM45 -> 0
B63: =IF(Ret_income!AG46="",0,Ret_income!AG46) -> 0 | C63: =Ret_income!AI46 -> 0 | D63: =Ret_income!AJ46 -> 0 | E63: =Ret_income!AK46 -> 0 | F63: =Ret_income!AL46 -> 0 | G63: =Ret_income!AM46 -> 0
B64: =IF(Ret_income!AG47="",0,Ret_income!AG47) -> 0 | C64: =Ret_income!AI47 -> 0 | D64: =Ret_income!AJ47 -> 0 | E64: =Ret_income!AK47 -> 0 | F64: =Ret_income!AL47 -> 0 | G64: =Ret_income!AM47 -> 0
B65: =IF(Ret_income!AG48="",0,Ret_income!AG48) -> 0 | C65: =Ret_income!AI48 -> 0 | D65: =Ret_income!AJ48 -> 0 | E65: =Ret_income!AK48 -> 0 | F65: =Ret_income!AL48 -> 0 | G65: =Ret_income!AM48 -> 0
B66: =IF(Ret_income!AG49="",0,Ret_income!AG49) -> 0 | C66: =Ret_income!AI49 -> 0 | D66: =Ret_income!AJ49 -> 0 | E66: =Ret_income!AK49 -> 0 | F66: =Ret_income!AL49 -> 0 | G66: =Ret_income!AM49 -> 0
B67: =IF(Ret_income!AG50="",0,Ret_income!AG50) -> 0 | C67: =Ret_income!AI50 -> 0 | D67: =Ret_income!AJ50 -> 0 | E67: =Ret_income!AK50 -> 0 | F67: =Ret_income!AL50 -> 0 | G67: =Ret_income!AM50 -> 0
B68: =IF(Ret_income!AG51="",0,Ret_income!AG51) -> 0 | C68: =Ret_income!AI51 -> 0 | D68: =Ret_income!AJ51 -> 0 | E68: =Ret_income!AK51 -> 0 | F68: =Ret_income!AL51 -> 0 | G68: =Ret_income!AM51 -> 0
B69: =IF(Ret_income!AG52="",0,Ret_income!AG52) -> 0 | C69: =Ret_income!AI52 -> 0 | D69: =Ret_income!AJ52 -> 0 | E69: =Ret_income!AK52 -> 0 | F69: =Ret_income!AL52 -> 0 | G69: =Ret_income!AM52 -> 0
B70: =IF(Ret_income!AG53="",0,Ret_income!AG53) -> 0 | C70: =Ret_income!AI53 -> 0 | D70: =Ret_income!AJ53 -> 0 | E70: =Ret_income!AK53 -> 0 | F70: =Ret_income!AL53 -> 0 | G70: =Ret_income!AM53 -> 0
B71: =IF(Ret_income!AG54="",0,Ret_income!AG54) -> 0 | C71: =Ret_income!AI54 -> 0 | D71: =Ret_income!AJ54 -> 0 | E71: =Ret_income!AK54 -> 0 | F71: =Ret_income!AL54 -> 0 | G71: =Ret_income!AM54 -> 0
B72: =IF(Ret_income!AG55="",0,Ret_income!AG55) -> 0 | C72: =Ret_income!AI55 -> 0 | D72: =Ret_income!AJ55 -> 0 | E72: =Ret_income!AK55 -> 0 | F72: =Ret_income!AL55 -> 0 | G72: =Ret_income!AM55 -> 0
B73: =IF(Ret_income!AG56="",0,Ret_income!AG56) -> 0 | C73: =Ret_income!AI56 -> 0 | D73: =Ret_income!AJ56 -> 0 | E73: =Ret_income!AK56 -> 0 | F73: =Ret_income!AL56 -> 0 | G73: =Ret_income!AM56 -> 0
B74: =IF(Ret_income!AG57="",0,Ret_income!AG57) -> 0 | C74: =Ret_income!AI57 -> 0 | D74: =Ret_income!AJ57 -> 0 | E74: =Ret_income!AK57 -> 0 | F74: =Ret_income!AL57 -> 0 | G74: =Ret_income!AM57 -> 0
B75: =IF(Ret_income!AG58="",0,Ret_income!AG58) -> 0 | C75: =Ret_income!AI58 -> 0 | D75: =Ret_income!AJ58 -> 0 | E75: =Ret_income!AK58 -> 0 | F75: =Ret_income!AL58 -> 0 | G75: =Ret_income!AM58 -> 0
B76: =IF(Ret_income!AG59="",0,Ret_income!AG59) -> 0 | C76: =Ret_income!AI59 -> 0 | D76: =Ret_income!AJ59 -> 0 | E76: =Ret_income!AK59 -> 0 | F76: =Ret_income!AL59 -> 0 | G76: =Ret_income!AM59 -> 0
B77: =IF(Ret_income!AG60="",0,Ret_income!AG60) -> 0 | C77: =Ret_income!AI60 -> 0 | D77: =Ret_income!AJ60 -> 0 | E77: =Ret_income!AK60 -> 0 | F77: =Ret_income!AL60 -> 0 | G77: =Ret_income!AM60 -> 0
B79: SURPLUS/-DEFICIT | C79: =C7-C21 -> 0 | D79: =D7-D21 -> -165804 | E79: =E7-E21 -> -138198.91 | F79: =F7-F21 -> -176766.21 | G79: =G7-G21 -> -177900.81
B81: TRANSFERS IN/-OUT | C81: =SUM(C82:C90) -> 0 | D81: =SUM(D82:D90) -> 196000 | E81: =SUM(E82:E90) -> 196000 | F81: =SUM(F82:F90) -> 175000 | G81: =SUM(G82:G90) -> 195000
B82: =IF(Ret_income!AT5="",0,Ret_income!AT5) -> ACCOUNTING DEPT GRANT | C82: =-Ret_income!AV5 -> 0 | D82: =-Ret_income!AW5 -> 196000 | E82: =-Ret_income!AX5 -> 196000 | F82: =-Ret_income!AY5 -> 175000 | G82: =-Ret_income!AZ5 -> 195000
B83: =IF(Ret_income!AT6="",0,Ret_income!AT6) -> ACCOUNTING DEPT TRANSFERS | C83: =-Ret_income!AV6 -> 0 | D83: =-Ret_income!AW6 -> 0 | E83: =-Ret_income!AX6 -> 0 | F83: =-Ret_income!AY6 -> 0 | G83: =-Ret_income!AZ6 -> 0
B84: =IF(Ret_income!AT7="",0,Ret_income!AT7) -> 0 | C84: =-Ret_income!AV7 -> 0 | D84: =-Ret_income!AW7 -> 0 | E84: =-Ret_income!AX7 -> 0 | F84: =-Ret_income!AY7 -> 0 | G84: =-Ret_income!AZ7 -> 0
B85: =IF(Ret_income!AT8="",0,Ret_income!AT8) -> 0 | C85: =-Ret_income!AV8 -> 0 | D85: =-Ret_income!AW8 -> 0 | E85: =-Ret_income!AX8 -> 0 | F85: =-Ret_income!AY8 -> 0 | G85: =-Ret_income!AZ8 -> 0
B86: =IF(Ret_income!AT9="",0,Ret_income!AT9) -> 0 | C86: =-Ret_income!AV9 -> 0 | D86: =-Ret_income!AW9 -> 0 | E86: =-Ret_income!AX9 -> 0 | F86: =-Ret_income!AY9 -> 0 | G86: =-Ret_income!AZ9 -> 0
B87: =IF(Ret_income!AT10="",0,Ret_income!AT10) -> 0 | C87: =-Ret_income!AV10 -> 0 | D87: =-Ret_income!AW10 -> 0 | E87: =-Ret_income!AX10 -> 0 | F87: =-Ret_income!AY10 -> 0 | G87: =-Ret_income!AZ10 -> 0
B88: =IF(Ret_income!AT11="",0,Ret_income!AT11) -> 0 | C88: =-Ret_income!AV11 -> 0 | D88: =-Ret_income!AW11 -> 0 | E88: =-Ret_income!AX11 -> 0 | F88: =-Ret_income!AY11 -> 0 | G88: =-Ret_income!AZ11 -> 0
B89: =IF(Ret_income!AT12="",0,Ret_income!AT12) -> 0 | C89: =-Ret_income!AV12 -> 0 | D89: =-Ret_income!AW12 -> 0 | E89: =-Ret_income!AX12 -> 0 | F89: =-Ret_income!AY12 -> 0 | G89: =-Ret_income!AZ12 -> 0
B90: =IF(Ret_income!AT13="",0,Ret_income!AT13) -> 0 | C90: =-Ret_income!AV13 -> 0 | D90: =-Ret_income!AW13 -> 0 | E90: =-Ret_income!AX13 -> 0 | F90: =-Ret_income!AY13 -> 0 | G90: =-Ret_income!AZ13 -> 0
B92: NET SURPLUS/-DEFICIT | C92: =C79+C81 -> 0 | D92: =D79+D81 -> 30196 | E92: 57801.09 | F92: -1766.21 | G92: 17099.19
B94: Please return to : | E94: Completed by:
B95: Finance Division | E95: NAME
B96: Mrs Sonia Kivitts | E96: DATE
B97: e.mail: s.kivitts@ru.ac.za | E97: TEL EXT:
B98: Ext. 8123 | E98: Confirmed by Head of Department
E99: SIGNATURE
E100: NAME
E101: DATE
E102: Confirmed by Dean
E103: SIGNATURE
E104: NAME
E105: DATE
